[Event "Titled Tuesday Blitz January 31 Early 2023"]
[White "Mangialardo, Tiago Carvalho"]
[Black "Dwilewicz, Katarzyna"]
[WhiteFideId "2130718"]
[BlackFideId "1148486"]
[WhiteElo "1965"]
[BlackElo "2115"]
[Result "0-1"]
[Round "08"]
[TimeControl "180+2"]
[Date "2023.01.31"]
[WhiteClock "0:00:01"]
[BlackClock "0:00:24"]

1. e4 {[%clk 0:03:00]}  c5 {[%clk 0:02:59]} 2. Nf3 {[%clk 0:03:00]}  d6 {[%clk 0:02:59]} 3. d4 {[%clk 0:03:00]}  cxd4 {[%clk 0:02:59]} 4. Nxd4 {[%clk 0:03:01]}  Nf6 {[%clk 0:02:59]} 5. Nc3 {[%clk 0:03:02]}  a6 {[%clk 0:02:59]} 6. Be3 {[%clk 0:02:57]}  e6 {[%clk 0:02:57]} 7. Be2 {[%clk 0:02:57]}  Be7 {[%clk 0:02:55]} 8. Qd2 {[%clk 0:02:47]}  b5 {[%clk 0:02:53]} 9. Bf3 {[%clk 0:02:44]}  Bb7 {[%clk 0:02:54]} 10. a3 {[%clk 0:02:42]}  Qc7 {[%clk 0:02:44]} 11. O-O {[%clk 0:02:41]}  Nbd7 {[%clk 0:02:44]} 12. Rfe1 {[%clk 0:02:41]}  O-O {[%clk 0:02:43]} 13. Rad1 {[%clk 0:02:41]}  Rac8 {[%clk 0:02:43]} 14. h3 {[%clk 0:02:24]}  Ne5 {[%clk 0:02:43]} 15. Bg5 {[%clk 0:01:17]}  Nxf3+ {[%clk 0:02:37]} 16. Nxf3 {[%clk 0:01:12]}  Rfd8 {[%clk 0:02:37]} 17. Qf4 {[%clk 0:01:07]}  h6 {[%clk 0:02:14]} 18. Bxf6 {[%clk 0:00:49]}  Bxf6 {[%clk 0:02:13]} 19. Rd3 {[%clk 0:00:49]}  Bc6 {[%clk 0:02:05]} 20. Red1 {[%clk 0:00:48]}  Be7 {[%clk 0:01:43]} 21. Qg3 {[%clk 0:00:39]}  a5 {[%clk 0:01:41]} 22. Qg4 {[%clk 0:00:29]}  b4 {[%clk 0:01:38]} 23. axb4 {[%clk 0:00:30]}  axb4 {[%clk 0:01:38]} 24. Ne2 {[%clk 0:00:30]}  Bb5 {[%clk 0:01:34]} 25. R3d2 {[%clk 0:00:30]}  Bf6 {[%clk 0:01:29]} 26. Ned4 {[%clk 0:00:28]}  Ba4 {[%clk 0:01:25]} 27. b3 {[%clk 0:00:28]}  Bd7 {[%clk 0:01:22]} 28. Qg3 {[%clk 0:00:27]}  e5 {[%clk 0:01:17]} 29. Nf5 {[%clk 0:00:27]}  Bxf5 {[%clk 0:01:17]} 30. exf5 {[%clk 0:00:28]}  Qc6 {[%clk 0:01:13]} 31. Ne1 {[%clk 0:00:26]}  d5 {[%clk 0:01:13]} 32. Nd3 {[%clk 0:00:26]}  Qc3 {[%clk 0:01:07]} 33. Re2 {[%clk 0:00:21]}  e4 {[%clk 0:01:06]} 34. Nf4 {[%clk 0:00:19]}  Qxg3 {[%clk 0:00:49]} 35. fxg3 {[%clk 0:00:20]}  Rc5 {[%clk 0:00:49]} 36. Red2 {[%clk 0:00:18]}  d4 {[%clk 0:00:48]} 37. Kf1 {[%clk 0:00:15]}  Rxf5 {[%clk 0:00:48]} 38. Ke2 {[%clk 0:00:13]}  Rc5 {[%clk 0:00:40]} 39. Ke1 {[%clk 0:00:09]}  g6 {[%clk 0:00:39]} 40. Ne2 {[%clk 0:00:09]}  Rcd5 {[%clk 0:00:37]} 41. Nf4 {[%clk 0:00:09]}  R5d6 {[%clk 0:00:37]} 42. Ne2 {[%clk 0:00:08]}  Kg7 {[%clk 0:00:37]} 43. Nf4 {[%clk 0:00:09]}  Be5 {[%clk 0:00:37]} 44. Kf2 {[%clk 0:00:07]}  f5 {[%clk 0:00:37]} 45. Ke2 {[%clk 0:00:06]}  g5 {[%clk 0:00:36]} 46. Nh5+ {[%clk 0:00:06]}  Kg6 {[%clk 0:00:36]} 47. g4 {[%clk 0:00:07]}  f4 {[%clk 0:00:36]} 48. Kf1 {[%clk 0:00:06]}  Rc8 {[%clk 0:00:32]} 49. h4 {[%clk 0:00:04]}  Rdc6 {[%clk 0:00:31]} 50. Rc1 {[%clk 0:00:04]}  Rc3 {[%clk 0:00:29]} 51. Ke2 {[%clk 0:00:02]}  Rxb3 {[%clk 0:00:25]} 52. cxb3 {[%clk 0:00:01]}  Rxc1 {[%clk 0:00:24]} 0-1


[Site "https://www.chess.com"]

[Event "Titled Tuesday Blitz January 31 Early 2023"]
[White "Quirke, Jeffrey"]
[Black "Clawitter, Craig"]
[WhiteFideId "2013029"]
[BlackFideId "2023105"]
[WhiteElo "2007"]
[BlackElo "2050"]
[Result "0-1"]
[Round "08"]
[TimeControl "180+2"]
[Date "2023.01.31"]
[WhiteClock "0:00:03"]
[BlackClock "0:00:07"]

1. e4 {[%clk 0:03:00]}  e6 {[%clk 0:03:00]} 2. d4 {[%clk 0:02:58]}  d5 {[%clk 0:03:00]} 3. e5 {[%clk 0:02:58]}  c5 {[%clk 0:02:59]} 4. c3 {[%clk 0:02:58]}  Qb6 {[%clk 0:03:00]} 5. Nf3 {[%clk 0:02:55]}  Nc6 {[%clk 0:03:00]} 6. Bd3 {[%clk 0:02:49]}  cxd4 {[%clk 0:03:00]} 7. cxd4 {[%clk 0:02:49]}  Bd7 {[%clk 0:03:01]} 8. O-O {[%clk 0:02:43]}  Nxd4 {[%clk 0:03:01]} 9. Nc3 {[%clk 0:02:35]}  a6 {[%clk 0:02:53]} 10. Re1 {[%clk 0:02:13]}  Ne7 {[%clk 0:02:50]} 11. h4 {[%clk 0:02:12]}  Nec6 {[%clk 0:02:40]} 12. Ng5 {[%clk 0:02:03]}  Bb4 {[%clk 0:02:25]} 13. Qh5 {[%clk 0:01:54]}  g6 {[%clk 0:02:21]} 14. Qg4 {[%clk 0:01:31]}  h5 {[%clk 0:02:04]} 15. Qg3 {[%clk 0:01:21]}  Nf5 {[%clk 0:01:30]} 16. Bxf5 {[%clk 0:01:03]}  gxf5 {[%clk 0:01:31]} 17. Nxd5 {[%clk 0:00:46]}  exd5 {[%clk 0:01:25]} 18. e6 {[%clk 0:00:46]}  Bxe1 {[%clk 0:01:19]} 19. exd7+ {[%clk 0:00:27]}  Kxd7 {[%clk 0:01:12]} 20. Bf4 {[%clk 0:00:15]}  Qxf2+ {[%clk 0:01:05]} 21. Qxf2 {[%clk 0:00:15]}  Bxf2+ {[%clk 0:01:05]} 22. Kxf2 {[%clk 0:00:16]}  f6 {[%clk 0:00:50]} 23. Nf3 {[%clk 0:00:15]}  Rad8 {[%clk 0:00:38]} 24. Rd1 {[%clk 0:00:14]}  Kc8 {[%clk 0:00:37]} 25. g3 {[%clk 0:00:12]}  Rhe8 {[%clk 0:00:36]} 26. Rd2 {[%clk 0:00:11]}  Re4 {[%clk 0:00:33]} 27. b3 {[%clk 0:00:09]}  d4 {[%clk 0:00:33]} 28. Ne1 {[%clk 0:00:08]}  Ne5 {[%clk 0:00:31]} 29. Nd3 {[%clk 0:00:07]}  Nxd3+ {[%clk 0:00:23]} 30. Rxd3 {[%clk 0:00:08]}  Kd7 {[%clk 0:00:20]} 31. Kf3 {[%clk 0:00:06]}  Ke6 {[%clk 0:00:20]} 32. Rd2 {[%clk 0:00:05]}  d3 {[%clk 0:00:20]} 33. Be3 {[%clk 0:00:05]}  Ke5 {[%clk 0:00:15]} 34. Kf2 {[%clk 0:00:05]}  Rd5 {[%clk 0:00:14]} 35. Kf3 {[%clk 0:00:04]}  Rb4 {[%clk 0:00:13]} 36. Kf2 {[%clk 0:00:04]}  Ke4 {[%clk 0:00:12]} 37. Bf4 {[%clk 0:00:04]}  Rbb5 {[%clk 0:00:11]} 38. Be3 {[%clk 0:00:04]}  Rb4 {[%clk 0:00:10]} 39. Bf4 {[%clk 0:00:05]}  Rc5 {[%clk 0:00:09]} 40. Be3 {[%clk 0:00:05]}  Rc2 {[%clk 0:00:09]} 41. Bf4 {[%clk 0:00:06]}  Rb5 {[%clk 0:00:08]} 42. Be3 {[%clk 0:00:05]}  Rd5 {[%clk 0:00:08]} 43. Bf4 {[%clk 0:00:05]}  Rdc5 {[%clk 0:00:09]} 44. Be3 {[%clk 0:00:05]}  Rxd2+ {[%clk 0:00:09]} 45. Bxd2 {[%clk 0:00:05]}  Rc2 {[%clk 0:00:10]} 46. Ke1 {[%clk 0:00:05]}  Kf3 {[%clk 0:00:09]} 47. Bf4 {[%clk 0:00:05]}  Rxa2 {[%clk 0:00:09]} 48. b4 {[%clk 0:00:04]}  Rb2 {[%clk 0:00:09]} 49. Bd6 {[%clk 0:00:03]}  Ke3 {[%clk 0:00:08]} 50. Bf4+ {[%clk 0:00:03]}  Kf3 {[%clk 0:00:08]} 51. Bd6 {[%clk 0:00:03]}  Ke4 {[%clk 0:00:08]} 52. Bc5 {[%clk 0:00:03]}  d2+ {[%clk 0:00:07]} 53. Kd1 {[%clk 0:00:03]}  Kd3 {[%clk 0:00:07]} 0-1


[Site "https://www.chess.com"]

[Event "Titled Tuesday Blitz January 31 Early 2023"]
[White "Winkels, Marcel"]
[Black "Schut, Han"]
[WhiteFideId "1003887"]
[BlackFideId "1005561"]
[WhiteElo "1960"]
[BlackElo "2101"]
[Result "0-1"]
[Round "08"]
[TimeControl "180+2"]
[Date "2023.01.31"]
[WhiteClock "0:00:01"]
[BlackClock "0:00:11"]

1. e4 {[%clk 0:03:00]}  c5 {[%clk 0:02:53]} 2. Nf3 {[%clk 0:03:00]}  d6 {[%clk 0:02:52]} 3. d4 {[%clk 0:02:59]}  cxd4 {[%clk 0:02:53]} 4. Nxd4 {[%clk 0:02:59]}  Nf6 {[%clk 0:02:54]} 5. Nc3 {[%clk 0:02:59]}  a6 {[%clk 0:02:54]} 6. Bc4 {[%clk 0:02:55]}  e6 {[%clk 0:02:54]} 7. O-O {[%clk 0:02:54]}  b5 {[%clk 0:02:53]} 8. Bb3 {[%clk 0:02:53]}  b4 {[%clk 0:02:53]} 9. Na4 {[%clk 0:02:52]}  Bd7 {[%clk 0:02:54]} 10. a3 {[%clk 0:02:36]}  bxa3 {[%clk 0:02:53]} 11. bxa3 {[%clk 0:02:28]}  Nxe4 {[%clk 0:02:41]} 12. Nxe6 {[%clk 0:02:09]}  fxe6 {[%clk 0:02:34]} 13. Re1 {[%clk 0:02:04]}  d5 {[%clk 0:02:32]} 14. Bxd5 {[%clk 0:01:59]}  exd5 {[%clk 0:02:19]} 15. Qxd5 {[%clk 0:01:57]}  Bc6 {[%clk 0:01:44]} 16. Rxe4+ {[%clk 0:01:52]}  Be7 {[%clk 0:01:45]} 17. Qh5+ {[%clk 0:01:45]}  g6 {[%clk 0:01:40]} 18. Qe5 {[%clk 0:01:44]}  O-O {[%clk 0:01:35]} 19. Qxe7 {[%clk 0:01:30]}  Bxe4 {[%clk 0:01:05]} 20. Qe6+ {[%clk 0:01:02]}  Rf7 {[%clk 0:01:05]} 21. Bb2 {[%clk 0:00:41]}  Qe7 {[%clk 0:00:39]} 22. Qc8+ {[%clk 0:00:30]}  Rf8 {[%clk 0:00:34]} 23. Qc3 {[%clk 0:00:28]}  Kf7 {[%clk 0:00:20]} 24. Nb6 {[%clk 0:00:24]}  Ra7 {[%clk 0:00:18]} 25. Re1 {[%clk 0:00:22]}  Rc7 {[%clk 0:00:18]} 26. Qd4 {[%clk 0:00:20]}  Rd7 {[%clk 0:00:17]} 27. Nxd7 {[%clk 0:00:14]}  Nxd7 {[%clk 0:00:16]} 28. Qxe4 {[%clk 0:00:12]}  Qxe4 {[%clk 0:00:16]} 29. Rxe4 {[%clk 0:00:11]}  Rc8 {[%clk 0:00:15]} 30. Rd4 {[%clk 0:00:08]}  Ke6 {[%clk 0:00:14]} 31. c4 {[%clk 0:00:06]}  Nb6 {[%clk 0:00:11]} 32. Re4+ {[%clk 0:00:05]}  Kd7 {[%clk 0:00:11]} 33. Rf4 {[%clk 0:00:04]}  Nxc4 {[%clk 0:00:10]} 34. Bd4 {[%clk 0:00:02]}  Ke6 {[%clk 0:00:11]} 35. Rf6+ {[%clk 0:00:01]}  Kd5 {[%clk 0:00:11]} 36. Rf4 {[%clk 0:00:01]}  Nxa3 {[%clk 0:00:11]} 37. Rg4 {[%clk 0:00:01]}  Rc1# {[%clk 0:00:11]} 0-1


[Site "https://www.chess.com"]

[Event "Titled Tuesday Blitz January 31 Early 2023"]
[White "Ciuffoletti, Paolo"]
[Black "Ricaurte Lopez, Juan Carlos"]
[WhiteFideId "807630"]
[BlackFideId "3600327"]
[WhiteElo "2106"]
[BlackElo "2226"]
[Result "1-0"]
[Round "08"]
[TimeControl "180+2"]
[Date "2023.01.31"]
[WhiteClock "0:00:05"]
[BlackClock "0:00:04"]

1. e4 {[%clk 0:03:00]}  e5 {[%clk 0:02:58]} 2. Nf3 {[%clk 0:02:59]}  d5 {[%clk 0:02:58]} 3. exd5 {[%clk 0:02:57]}  e4 {[%clk 0:02:57]} 4. Qe2 {[%clk 0:02:52]}  Nf6 {[%clk 0:02:57]} 5. Nc3 {[%clk 0:02:50]}  Be7 {[%clk 0:02:54]} 6. Nxe4 {[%clk 0:02:44]}  Nxd5 {[%clk 0:02:53]} 7. d4 {[%clk 0:02:30]}  O-O {[%clk 0:02:50]} 8. Qd1 {[%clk 0:02:07]}  Re8 {[%clk 0:02:47]} 9. Be2 {[%clk 0:02:06]}  Bb4+ {[%clk 0:02:39]} 10. c3 {[%clk 0:01:55]}  Rxe4 {[%clk 0:02:38]} 11. cxb4 {[%clk 0:01:55]}  Nxb4 {[%clk 0:02:29]} 12. O-O {[%clk 0:01:54]}  Bg4 {[%clk 0:02:28]} 13. Be3 {[%clk 0:01:46]}  N8c6 {[%clk 0:02:25]} 14. Qb3 {[%clk 0:01:36]}  a5 {[%clk 0:02:16]} 15. Ng5 {[%clk 0:01:21]}  Be6 {[%clk 0:01:44]} 16. Bc4 {[%clk 0:01:08]}  a4 {[%clk 0:01:29]} 17. Qc3 {[%clk 0:01:02]}  Bxc4 {[%clk 0:01:21]} 18. Qxc4 {[%clk 0:01:01]}  Re7 {[%clk 0:01:18]} 19. Rad1 {[%clk 0:00:55]}  Qd5 {[%clk 0:01:15]} 20. Qxd5 {[%clk 0:00:44]}  Nxd5 {[%clk 0:01:16]} 21. Rfe1 {[%clk 0:00:43]}  Rae8 {[%clk 0:01:12]} 22. Rd3 {[%clk 0:00:35]}  Ncb4 {[%clk 0:01:07]} 23. Rd2 {[%clk 0:00:30]}  Nxa2 {[%clk 0:00:54]} 24. Nf3 {[%clk 0:00:29]}  f6 {[%clk 0:00:50]} 25. Rde2 {[%clk 0:00:24]}  Nab4 {[%clk 0:00:48]} 26. Nd2 {[%clk 0:00:22]}  Nc2 {[%clk 0:00:41]} 27. Rc1 {[%clk 0:00:21]}  Ncxe3 {[%clk 0:00:39]} 28. fxe3 {[%clk 0:00:21]}  Rxe3 {[%clk 0:00:38]} 29. Rxe3 {[%clk 0:00:21]}  Rxe3 {[%clk 0:00:38]} 30. Rc4 {[%clk 0:00:19]}  Rd3 {[%clk 0:00:36]} 31. Nf3 {[%clk 0:00:18]}  Rb3 {[%clk 0:00:24]} 32. Rxa4 {[%clk 0:00:16]}  Rxb2 {[%clk 0:00:24]} 33. Ra8+ {[%clk 0:00:15]}  Kf7 {[%clk 0:00:23]} 34. Rd8 {[%clk 0:00:16]}  c6 {[%clk 0:00:22]} 35. h3 {[%clk 0:00:15]}  Ke7 {[%clk 0:00:20]} 36. Rg8 {[%clk 0:00:14]}  Kf7 {[%clk 0:00:17]} 37. Rd8 {[%clk 0:00:14]}  g5 {[%clk 0:00:17]} 38. Rd7+ {[%clk 0:00:14]}  Ke6 {[%clk 0:00:17]} 39. Rxh7 {[%clk 0:00:14]}  Nf4 {[%clk 0:00:16]} 40. Ne1 {[%clk 0:00:10]}  b5 {[%clk 0:00:12]} 41. Rc7 {[%clk 0:00:09]}  Kd6 {[%clk 0:00:10]} 42. Rf7 {[%clk 0:00:09]}  Nd5 {[%clk 0:00:11]} 43. Ra7 {[%clk 0:00:08]}  b4 {[%clk 0:00:10]} 44. Kf1 {[%clk 0:00:08]}  Ne3+ {[%clk 0:00:08]} 45. Kg1 {[%clk 0:00:07]}  b3 {[%clk 0:00:08]} 46. Rb7 {[%clk 0:00:06]}  Kd5 {[%clk 0:00:04]} 47. Nf3 {[%clk 0:00:05]} 1-0


[Site "https://www.chess.com"]

[Event "Titled Tuesday Blitz January 31 Early 2023"]
[White "Bongo Akanga Ndjila, Barthelemy"]
[Black "Alhadad, Mahmoud"]
[WhiteFideId "10609431"]
[BlackFideId "11501863"]
[WhiteElo "1824"]
[BlackElo "1840"]
[Result "1-0"]
[Round "08"]
[TimeControl "180+2"]
[Date "2023.01.31"]
[WhiteClock "0:00:15"]
[BlackClock "0:00:03"]

1. d4 {[%clk 0:02:53]}  d5 {[%clk 0:02:53]} 2. c4 {[%clk 0:02:43]}  Nc6 {[%clk 0:02:52]} 3. e3 {[%clk 0:02:41]}  e5 {[%clk 0:02:50]} 4. Nf3 {[%clk 0:02:36]}  exd4 {[%clk 0:02:46]} 5. Nxd4 {[%clk 0:02:35]}  Bb4+ {[%clk 0:02:43]} 6. Nc3 {[%clk 0:02:34]}  Bxc3+ {[%clk 0:02:42]} 7. bxc3 {[%clk 0:02:33]}  Nf6 {[%clk 0:02:38]} 8. Bd3 {[%clk 0:02:31]}  dxc4 {[%clk 0:02:37]} 9. Bxc4 {[%clk 0:02:30]}  O-O {[%clk 0:02:37]} 10. O-O {[%clk 0:02:29]}  Ne5 {[%clk 0:02:35]} 11. Bb3 {[%clk 0:02:25]}  Bg4 {[%clk 0:02:31]} 12. f3 {[%clk 0:02:23]}  Bh5 {[%clk 0:02:29]} 13. e4 {[%clk 0:02:23]}  c5 {[%clk 0:02:26]} 14. Nf5 {[%clk 0:02:18]}  Qxd1 {[%clk 0:02:25]} 15. Bxd1 {[%clk 0:02:16]}  Rfd8 {[%clk 0:02:06]} 16. Bg5 {[%clk 0:02:05]}  Rd3 {[%clk 0:01:57]} 17. Rc1 {[%clk 0:01:59]}  h6 {[%clk 0:01:18]} 18. Bxf6 {[%clk 0:01:51]}  gxf6 {[%clk 0:01:18]} 19. Nxh6+ {[%clk 0:01:51]}  Kh7 {[%clk 0:01:19]} 20. Nf5 {[%clk 0:01:50]}  Bg6 {[%clk 0:01:15]} 21. Ng3 {[%clk 0:01:43]}  Rd2 {[%clk 0:01:12]} 22. f4 {[%clk 0:01:40]}  Nd3 {[%clk 0:01:02]} 23. Rb1 {[%clk 0:01:35]}  Kg7 {[%clk 0:00:51]} 24. Rxb7 {[%clk 0:01:29]}  Nxf4 {[%clk 0:00:51]} 25. Bb3 {[%clk 0:01:22]}  Nxg2 {[%clk 0:00:43]} 26. Nf5+ {[%clk 0:01:18]}  Bxf5 {[%clk 0:00:39]} 27. Rxf7+ {[%clk 0:01:15]}  Kg6 {[%clk 0:00:31]} 28. exf5+ {[%clk 0:01:14]}  Kg5 {[%clk 0:00:27]} 29. Kh1 {[%clk 0:01:12]}  Ne3 {[%clk 0:00:17]} 30. Rg7+ {[%clk 0:01:09]}  Kh6 {[%clk 0:00:17]} 31. Rg6+ {[%clk 0:01:07]}  Kh7 {[%clk 0:00:18]} 32. Rfg1 {[%clk 0:01:01]}  Nxf5 {[%clk 0:00:17]} 33. Rxf6 {[%clk 0:00:58]}  Nh4 {[%clk 0:00:10]} 34. h3 {[%clk 0:00:52]}  Re8 {[%clk 0:00:07]} 35. Rf7+ {[%clk 0:00:49]}  Kh6 {[%clk 0:00:07]} 36. Rf4 {[%clk 0:00:49]}  Ng6 {[%clk 0:00:06]} 37. Rf6 {[%clk 0:00:47]}  Ree2 {[%clk 0:00:06]} 38. Rfxg6+ {[%clk 0:00:39]}  Kh5 {[%clk 0:00:05]} 39. R1g5+ {[%clk 0:00:30]}  Kh4 {[%clk 0:00:04]} 40. Rg4+ {[%clk 0:00:20]}  Kxh3 {[%clk 0:00:04]} 41. Rg3+ {[%clk 0:00:18]}  Kh4 {[%clk 0:00:05]} 42. R6g4+ {[%clk 0:00:15]}  Kh5 {[%clk 0:00:05]} 43. Bf7+ {[%clk 0:00:15]}  Kh6 {[%clk 0:00:03]} 44. Rh3# {[%clk 0:00:15]} 1-0


[Site "https://www.chess.com"]

[Event "Titled Tuesday Blitz January 31 Early 2023"]
[White "ritanovikova"]
[Black "Mohammadian, Mohammad"]
[BlackFideId "12566055"]
[WhiteElo "2206"]
[BlackElo "1398"]
[Result "1-0"]
[Round "08"]
[TimeControl "180+2"]
[Date "2023.01.31"]
[WhiteClock "0:01:49"]
[BlackClock "0:00:39"]

1. e4 {[%clk 0:02:59]}  e5 {[%clk 0:02:58]} 2. Nf3 {[%clk 0:02:59]}  Nc6 {[%clk 0:02:56]} 3. Bc4 {[%clk 0:02:59]}  Bc5 {[%clk 0:02:55]} 4. c3 {[%clk 0:02:59]}  Nf6 {[%clk 0:02:53]} 5. d4 {[%clk 0:02:58]}  exd4 {[%clk 0:02:52]} 6. cxd4 {[%clk 0:02:59]}  Bb4+ {[%clk 0:02:52]} 7. Bd2 {[%clk 0:02:59]}  Bxd2+ {[%clk 0:02:51]} 8. Nbxd2 {[%clk 0:03:00]}  d6 {[%clk 0:02:50]} 9. O-O {[%clk 0:02:57]}  Bg4 {[%clk 0:02:49]} 10. h3 {[%clk 0:02:57]}  Bh5 {[%clk 0:02:48]} 11. e5 {[%clk 0:02:47]}  dxe5 {[%clk 0:02:43]} 12. dxe5 {[%clk 0:02:48]}  Nxe5 {[%clk 0:02:16]} 13. Qe1 {[%clk 0:02:36]}  Bxf3 {[%clk 0:01:46]} 14. Nxf3 {[%clk 0:02:35]}  Nd7 {[%clk 0:01:45]} 15. Nxe5 {[%clk 0:02:34]}  O-O {[%clk 0:01:36]} 16. Rd1 {[%clk 0:02:13]}  Qh4 {[%clk 0:01:16]} 17. Rxd7 {[%clk 0:02:03]}  Rae8 {[%clk 0:01:13]} 18. f4 {[%clk 0:01:55]}  Qxe1 {[%clk 0:00:59]} 19. Rxe1 {[%clk 0:01:56]}  Kh8 {[%clk 0:00:43]} 20. Nxf7+ {[%clk 0:01:51]}  Rxf7 {[%clk 0:00:39]} 21. Rxe8+ {[%clk 0:01:49]} 1-0


[Site "https://www.chess.com"]

[Event "Titled Tuesday Blitz January 31 Early 2023"]
[White "Burdalev, Kirill"]
[Black "De Souza, Cristiano Gomes"]
[WhiteFideId "14121913"]
[BlackFideId "2151758"]
[WhiteElo "2368"]
[BlackElo "2018"]
[Result "0-1"]
[Round "08"]
[TimeControl "180+2"]
[Date "2023.01.31"]
[WhiteClock "0:00:01"]
[BlackClock "0:01:21"]

1. e4 {[%clk 0:03:00]}  c5 {[%clk 0:02:58]} 2. Nf3 {[%clk 0:02:59]}  d6 {[%clk 0:02:58]} 3. d4 {[%clk 0:02:58]}  cxd4 {[%clk 0:02:58]} 4. Nxd4 {[%clk 0:02:59]}  Nf6 {[%clk 0:02:59]} 5. Nc3 {[%clk 0:02:58]}  a6 {[%clk 0:02:58]} 6. Bg5 {[%clk 0:02:52]}  e6 {[%clk 0:02:58]} 7. f4 {[%clk 0:02:50]}  h6 {[%clk 0:02:48]} 8. Bh4 {[%clk 0:02:47]}  g5 {[%clk 0:02:48]} 9. fxg5 {[%clk 0:02:45]}  Nfd7 {[%clk 0:02:48]} 10. Nf3 {[%clk 0:02:39]}  Be7 {[%clk 0:02:45]} 11. Qd2 {[%clk 0:02:37]}  hxg5 {[%clk 0:02:43]} 12. Bxg5 {[%clk 0:02:36]}  Ne5 {[%clk 0:02:40]} 13. Bxe7 {[%clk 0:02:32]}  Nxf3+ {[%clk 0:02:40]} 14. gxf3 {[%clk 0:02:31]}  Qxe7 {[%clk 0:02:40]} 15. O-O-O {[%clk 0:02:30]}  Nc6 {[%clk 0:02:23]} 16. Qxd6 {[%clk 0:02:27]}  Qxd6 {[%clk 0:02:20]} 17. Rxd6 {[%clk 0:02:28]}  Ne5 {[%clk 0:02:20]} 18. Be2 {[%clk 0:02:23]}  Ke7 {[%clk 0:02:20]} 19. Rdd1 {[%clk 0:02:15]}  Bd7 {[%clk 0:02:19]} 20. f4 {[%clk 0:02:07]}  Ng6 {[%clk 0:02:16]} 21. Rdf1 {[%clk 0:01:49]}  Rh4 {[%clk 0:02:06]} 22. f5 {[%clk 0:01:43]}  Nf4 {[%clk 0:02:05]} 23. fxe6 {[%clk 0:01:38]}  Bxe6 {[%clk 0:02:04]} 24. Kd2 {[%clk 0:01:28]}  Rah8 {[%clk 0:02:02]} 25. Rf2 {[%clk 0:01:23]}  b5 {[%clk 0:02:02]} 26. a3 {[%clk 0:01:21]}  Nh3 {[%clk 0:01:49]} 27. Rff1 {[%clk 0:00:59]}  Ng5 {[%clk 0:01:47]} 28. Ke3 {[%clk 0:00:53]}  Rh3+ {[%clk 0:01:43]} 29. Kf4 {[%clk 0:00:38]}  f6 {[%clk 0:01:41]} 30. Rfg1 {[%clk 0:00:11]}  R8h4+ {[%clk 0:01:27]} 31. Rg4 {[%clk 0:00:03]}  Bxg4 {[%clk 0:01:23]} 32. e5 {[%clk 0:00:01]}  Bxe2+ {[%clk 0:01:21]} 0-1


[Site "https://www.chess.com"]

[Event "Titled Tuesday Blitz January 31 Early 2023"]
[White "Dilmukhametov, Artur"]
[Black "Hartikainen, Jarmo"]
[WhiteFideId "24179922"]
[BlackFideId "503134"]
[WhiteElo "2276"]
[BlackElo "2108"]
[Result "0-1"]
[Round "08"]
[TimeControl "180+2"]
[Date "2023.01.31"]
[WhiteClock "0:02:19"]
[BlackClock "0:01:49"]

1. d4 {[%clk 0:03:00]}  Nf6 {[%clk 0:02:59]} 2. Nc3 {[%clk 0:03:01]}  e6 {[%clk 0:02:58]} 3. Bf4 {[%clk 0:03:00]}  d5 {[%clk 0:02:57]} 4. e3 {[%clk 0:02:59]}  a6 {[%clk 0:02:52]} 5. Bd3 {[%clk 0:02:58]}  c5 {[%clk 0:02:51]} 6. a3 {[%clk 0:02:55]}  Nc6 {[%clk 0:02:50]} 7. Qf3 {[%clk 0:02:53]}  cxd4 {[%clk 0:02:47]} 8. exd4 {[%clk 0:02:52]}  Nxd4 {[%clk 0:02:47]} 9. Qe3 {[%clk 0:02:50]}  Nc6 {[%clk 0:02:45]} 10. Nf3 {[%clk 0:02:49]}  Be7 {[%clk 0:02:39]} 11. Ne2 {[%clk 0:02:41]}  Bd7 {[%clk 0:02:31]} 12. O-O {[%clk 0:02:41]}  Rc8 {[%clk 0:02:27]} 13. Ng5 {[%clk 0:02:40]}  h6 {[%clk 0:02:21]} 14. Nf3 {[%clk 0:02:35]}  Ng4 {[%clk 0:02:10]} 15. Qd2 {[%clk 0:02:31]}  e5 {[%clk 0:02:10]} 16. Bg3 {[%clk 0:02:28]}  e4 {[%clk 0:02:08]} 17. Bxe4 {[%clk 0:02:24]}  dxe4 {[%clk 0:02:08]} 18. Nfd4 {[%clk 0:02:25]}  Nf6 {[%clk 0:02:01]} 19. Nxc6 {[%clk 0:02:24]}  Bxc6 {[%clk 0:01:59]} 20. Rad1 {[%clk 0:02:24]}  Qxd2 {[%clk 0:01:58]} 21. Rxd2 {[%clk 0:02:25]}  O-O {[%clk 0:01:58]} 22. Rfd1 {[%clk 0:02:25]}  Rfd8 {[%clk 0:01:54]} 23. Nf4 {[%clk 0:02:20]}  Rxd2 {[%clk 0:01:52]} 24. Rxd2 {[%clk 0:02:20]}  Rd8 {[%clk 0:01:51]} 25. Re2 {[%clk 0:02:19]}  Rd1+ {[%clk 0:01:49]} 0-1


[Site "https://www.chess.com"]